[Event "*** Titled Tuesday Blitz"]
[Site "Chess.com"]
[Date "2020.12.01"]
[Round "3"]
[White "renehp"]
[Black "Sueetin"]
[Result "1-0"]
[WhiteElo "2447"]
[BlackElo "2259"]
[TimeControl "180+1"]
[EndTime "10:27:32 PST"]
[Termination "renehp won on time"]

1. e4 {[%clk 0:03:00]} 1... c5 {[%clk 0:03:00]} 2. Nf3 {[%clk 0:02:59.6]} 2...
e6 {[%clk 0:03:00]} 3. g3 {[%clk 0:02:57.9]} 3... Nc6 {[%clk 0:02:57.1]} 4. Bg2
{[%clk 0:02:55.2]} 4... g6 {[%clk 0:02:49.6]} 5. d4 {[%clk 0:02:53.8]} 5... cxd4
{[%clk 0:02:47.8]} 6. Nxd4 {[%clk 0:02:54.7]} 6... Bg7 {[%clk 0:02:44.3]} 7. Nb5
{[%clk 0:02:52.8]} 7... Nge7 {[%clk 0:02:21.2]} 8. Nd6+ {[%clk 0:02:49.2]} 8...
Kf8 {[%clk 0:02:21.3]} 9. O-O {[%clk 0:02:49.7]} 9... b6 {[%clk 0:02:08.2]} 10.
Nc3 {[%clk 0:02:42.3]} 10... Ba6 {[%clk 0:02:07.4]} 11. Re1 {[%clk 0:02:33.5]}
11... Nc8 {[%clk 0:01:54]} 12. e5 {[%clk 0:02:06.1]} 12... Nxd6 {[%clk
0:01:48.9]} 13. exd6 {[%clk 0:02:07]} 13... Rc8 {[%clk 0:01:33.3]} 14. Ne4
{[%clk 0:02:06.6]} 14... f5 {[%clk 0:01:21.9]} 15. Bg5 {[%clk 0:01:57.1]} 15...
Qe8 {[%clk 0:01:16.7]} 16. Nc3 {[%clk 0:01:50.3]} 16... h6 {[%clk 0:01:12.1]}
17. Be3 {[%clk 0:01:45.7]} 17... Bf6 {[%clk 0:00:56.9]} 18. Nd5 {[%clk
0:01:39.9]} 18... Bxb2 {[%clk 0:00:47.9]} 19. Nc7 {[%clk 0:01:36.6]} 19... Rxc7
{[%clk 0:00:31.1]} 20. dxc7 {[%clk 0:01:36.3]} 20... Bxa1 {[%clk 0:00:18.4]} 21.
Qxa1 {[%clk 0:01:36.4]} 21... Kf7 {[%clk 0:00:17.6]} 22. h4 {[%clk 0:01:24]}
22... Qc8 {[%clk 0:00:13.4]} 23. Bg5 {[%clk 0:01:09.4]} 23... hxg5 {[%clk
0:00:09.3]} 24. hxg5 {[%clk 0:01:10.3]} 24... Rh7 {[%clk 0:00:01.2]} 25. Qf6+
{[%clk 0:01:09.8]} 25... Kg8 {[%clk 0:00:01.5]} 26. Bxc6 {[%clk 0:00:46]} 26...
dxc6 {[%clk 0:00:01.6]} 27. Rxe6 {[%clk 0:00:40.7]} 1-0

[Event "*** Titled Tuesday Blitz"]
[Site "Chess.com"]
[Date "2020.12.01"]
[Round "3"]
[White "Nadtkins"]
[Black "Sacbutt"]
[Result "1-0"]
[WhiteElo "2516"]
[BlackElo "2260"]
[TimeControl "180+1"]
[EndTime "10:27:33 PST"]
[Termination "Nadtkins won by checkmate"]

1. d4 {[%clk 0:03:00.9]} 1... e5 {[%clk 0:02:59.8]} 2. dxe5 {[%clk 0:03:00.6]}
2... Nc6 {[%clk 0:03:00.5]} 3. Nf3 {[%clk 0:03:00.3]} 3... Qe7 {[%clk
0:03:01.1]} 4. Qd5 {[%clk 0:03:00.8]} 4... f6 {[%clk 0:03:00.9]} 5. Nc3 {[%clk
0:02:50.3]} 5... fxe5 {[%clk 0:02:58.7]} 6. Bg5 {[%clk 0:02:45.8]} 6... Nf6
{[%clk 0:02:58]} 7. Bxf6 {[%clk 0:02:45.1]} 7... gxf6 {[%clk 0:02:50.8]} 8. e4
{[%clk 0:02:42.6]} 8... Qc5 {[%clk 0:02:38.6]} 9. Qxc5 {[%clk 0:02:35.8]} 9...
Bxc5 {[%clk 0:02:37.8]} 10. Nd5 {[%clk 0:02:36.7]} 10... O-O {[%clk 0:02:09.9]}
11. Nxc7 {[%clk 0:02:34.5]} 11... Rb8 {[%clk 0:02:09.9]} 12. Bc4+ {[%clk
0:02:34.3]} 12... Kg7 {[%clk 0:02:04.9]} 13. c3 {[%clk 0:02:33.6]} 13... d6
{[%clk 0:01:53.8]} 14. Nh4 {[%clk 0:02:18.2]} 14... Ne7 {[%clk 0:01:50.7]} 15.
Ne6+ {[%clk 0:01:58.4]} 15... Bxe6 {[%clk 0:01:49.5]} 16. Bxe6 {[%clk
0:01:59.3]} 16... b5 {[%clk 0:01:41.4]} 17. a3 {[%clk 0:01:56.3]} 17... a5
{[%clk 0:01:40.4]} 18. Ke2 {[%clk 0:01:51.2]} 18... b4 {[%clk 0:01:39.5]} 19.
axb4 {[%clk 0:01:50.7]} 19... axb4 {[%clk 0:01:39.6]} 20. c4 {[%clk 0:01:49.4]}
20... Bd4 {[%clk 0:01:36.1]} 21. Rhb1 {[%clk 0:01:46.8]} 21... Ra8 {[%clk
0:01:24]} 22. Bd5 {[%clk 0:01:43.9]} 22... Nxd5 {[%clk 0:01:20.9]} 23. exd5
{[%clk 0:01:30.4]} 23... Rxa1 {[%clk 0:01:17.5]} 24. Rxa1 {[%clk 0:01:30.5]}
24... Bxb2 {[%clk 0:01:01.4]} 25. Ra7+ {[%clk 0:01:30]} 25... Kg8 {[%clk
0:00:57.2]} 26. Nf5 {[%clk 0:01:28.6]} 26... Rd8 {[%clk 0:00:51.9]} 27. Rb7
{[%clk 0:01:24.6]} 27... Bc3 {[%clk 0:00:43.3]} 28. Kd3 {[%clk 0:01:21.9]} 28...
Be1 {[%clk 0:00:34.7]} 29. f3 {[%clk 0:01:19.6]} 29... h5 {[%clk 0:00:33.3]} 30.
h4 {[%clk 0:01:15]} 30... Ra8 {[%clk 0:00:26]} 31. Nxd6 {[%clk 0:01:09.6]} 31...
Ra3+ {[%clk 0:00:24.7]} 32. Ke4 {[%clk 0:01:09.3]} 32... b3 {[%clk 0:00:23.1]}
33. Kf5 {[%clk 0:01:03.6]} 33... Bxh4 {[%clk 0:00:19.9]} 34. Kg6 {[%clk
0:00:55.2]} 34... Kf8 {[%clk 0:00:18.3]} 35. Rf7+ {[%clk 0:00:49.6]} 35... Kg8
{[%clk 0:00:17.2]} 36. Nf5 {[%clk 0:00:49.8]} 36... Ra6 {[%clk 0:00:15.2]} 37.
Rb7 {[%clk 0:00:46.4]} 37... e4 {[%clk 0:00:13.5]} 38. Rb8# {[%clk 0:00:45.4]}
1-0

[Event "*** Titled Tuesday Blitz"]
[Site "Chess.com"]
[Date "2020.12.01"]
[Round "3"]
[White "ErikRonka"]
[Black "chessmadara"]
[Result "1-0"]
[WhiteElo "2377"]
[BlackElo "2190"]
[TimeControl "180+1"]
[EndTime "10:27:34 PST"]
[Termination "ErikRonka won by checkmate"]

1. d4 {[%clk 0:03:00.9]} 1... Nf6 {[%clk 0:02:58.7]} 2. Bg5 {[%clk 0:02:58.1]}
2... e6 {[%clk 0:02:54.1]} 3. e4 {[%clk 0:02:53.7]} 3... c5 {[%clk 0:02:53.5]}
4. e5 {[%clk 0:02:47.3]} 4... h6 {[%clk 0:02:53.6]} 5. Bc1 {[%clk 0:02:42.7]}
5... Nh7 {[%clk 0:02:53.7]} 6. c3 {[%clk 0:02:36.3]} 6... d6 {[%clk 0:02:47.6]}
7. Nf3 {[%clk 0:02:32.9]} 7... Nc6 {[%clk 0:02:40]} 8. exd6 {[%clk 0:02:29.2]}
8... Bxd6 {[%clk 0:02:31.1]} 9. Bd3 {[%clk 0:02:28.4]} 9... Nf6 {[%clk
0:02:26.6]} 10. O-O {[%clk 0:02:25.1]} 10... O-O {[%clk 0:02:25.3]} 11. Qe2
{[%clk 0:02:19.2]} 11... b6 {[%clk 0:02:02.1]} 12. Nbd2 {[%clk 0:02:11.8]} 12...
Bb7 {[%clk 0:02:00.7]} 13. Ne4 {[%clk 0:02:10.4]} 13... cxd4 {[%clk 0:01:44]}
14. Nxf6+ {[%clk 0:02:09.7]} 14... Qxf6 {[%clk 0:01:43.3]} 15. Qe4 {[%clk
0:02:10.3]} 15... g6 {[%clk 0:01:23.6]} 16. Bxh6 {[%clk 0:02:08.7]} 16... Na5
{[%clk 0:01:16]} 17. Qg4 {[%clk 0:02:01.2]} 17... Bxf3 {[%clk 0:01:11.1]} 18.
gxf3 {[%clk 0:02:02.1]} 18... Rfc8 {[%clk 0:01:02.5]} 19. cxd4 {[%clk
0:01:57.2]} 19... Nc6 {[%clk 0:00:44]} 20. Be4 {[%clk 0:01:44.4]} 20... Nxd4
{[%clk 0:00:40]} 21. Bxa8 {[%clk 0:01:41.5]} 21... Rxa8 {[%clk 0:00:40.9]} 22.
f4 {[%clk 0:01:37.8]} 22... Nf5 {[%clk 0:00:36.1]} 23. Bg5 {[%clk 0:01:34.8]}
23... Qxb2 {[%clk 0:00:36]} 24. h4 {[%clk 0:01:25.6]} 24... Bc5 {[%clk
0:00:33.9]} 25. h5 {[%clk 0:01:21.3]} 25... Kg7 {[%clk 0:00:15.8]} 26. Rad1
{[%clk 0:01:16.9]} 26... Rh8 {[%clk 0:00:14.8]} 27. hxg6 {[%clk 0:01:13.5]}
27... Qb4 {[%clk 0:00:08.1]} 28. Bf6+ {[%clk 0:00:36.3]} 28... Kxf6 {[%clk
0:00:04.9]} 29. g7 {[%clk 0:00:36.8]} 29... Rh6 {[%clk 0:00:03.8]} 30. Qg5#
{[%clk 0:00:36.1]} 1-0

[Event "*** Titled Tuesday Blitz"]
[Site "Chess.com"]
[Date "2020.12.01"]
[Round "3"]
[White "Homino"]
[Black "GMStefanova"]
[Result "1-0"]
[WhiteElo "2376"]
[BlackElo "2529"]
[TimeControl "180+1"]
[EndTime "10:27:38 PST"]
[Termination "Homino won by resignation"]

1. e4 {[%clk 0:03:00.9]} 1... c6 {[%clk 0:02:59.3]} 2. d4 {[%clk 0:03:00.3]}
2... d5 {[%clk 0:02:59.5]} 3. Nc3 {[%clk 0:02:59.4]} 3... dxe4 {[%clk
0:02:57.7]} 4. Nxe4 {[%clk 0:03:00.3]} 4... Nf6 {[%clk 0:02:57.9]} 5. Nxf6+
{[%clk 0:02:59.5]} 5... exf6 {[%clk 0:02:58.2]} 6. c3 {[%clk 0:02:55.7]} 6...
Bd6 {[%clk 0:02:56.6]} 7. Bd3 {[%clk 0:02:55.2]} 7... O-O {[%clk 0:02:53.2]} 8.
Ne2 {[%clk 0:02:55.2]} 8... Re8 {[%clk 0:02:49.7]} 9. O-O {[%clk 0:02:54.8]}
9... Nd7 {[%clk 0:02:47.7]} 10. Qc2 {[%clk 0:02:52.6]} 10... Nf8 {[%clk
0:02:46.1]} 11. Ng3 {[%clk 0:02:45.9]} 11... g6 {[%clk 0:02:33.6]} 12. Bd2
{[%clk 0:02:27.5]} 12... Be6 {[%clk 0:02:28.9]} 13. Rfe1 {[%clk 0:02:23.5]}
13... Bc7 {[%clk 0:02:21.1]} 14. Ne4 {[%clk 0:02:02.5]} 14... b6 {[%clk
0:02:07.5]} 15. Rad1 {[%clk 0:01:38.9]} 15... f5 {[%clk 0:01:45.1]} 16. Bg5
{[%clk 0:01:34.3]} 16... Bxh2+ {[%clk 0:01:10.7]} 17. Kxh2 {[%clk 0:01:26]}
17... Qc7+ {[%clk 0:01:07.3]} 18. Ng3 {[%clk 0:01:24.7]} 18... Nd7 {[%clk
0:00:59.1]} 19. Qc1 {[%clk 0:01:14.5]} 19... c5 {[%clk 0:00:53.9]} 20. Bb5
{[%clk 0:00:43.9]} 20... a6 {[%clk 0:00:30.1]} 21. Bf4 {[%clk 0:00:35.2]} 21...
Qb7 {[%clk 0:00:29.1]} 22. Bxd7 {[%clk 0:00:30.9]} 22... Bxd7 {[%clk 0:00:28.9]}
23. Be5 {[%clk 0:00:22.6]} 23... Bc6 {[%clk 0:00:20.1]} 24. Qh6 {[%clk
0:00:20.6]} 24... Rxe5 {[%clk 0:00:19.2]} 25. dxe5 {[%clk 0:00:19.6]} 25... Bxg2
{[%clk 0:00:18.1]} 26. e6 {[%clk 0:00:17.7]} 26... Bf3 {[%clk 0:00:17.7]} 27.
Rd7 {[%clk 0:00:16.3]} 1-0

[Event "*** Titled Tuesday Blitz"]
[Site "Chess.com"]
[Date "2020.12.01"]
[Round "3"]
[White "FontVella8"]
[Black "joejan"]
[Result "1-0"]
[WhiteElo "2510"]
[BlackElo "2266"]
[TimeControl "180+1"]
[EndTime "10:27:39 PST"]
[Termination "FontVella8 won by resignation"]

1. d4 {[%clk 0:01:15.6]} 1... Nf6 {[%clk 0:02:58.3]} 2. Nf3 {[%clk 0:01:15.3]}
2... e6 {[%clk 0:02:57.2]} 3. Bf4 {[%clk 0:01:15.2]} 3... c5 {[%clk 0:02:56.5]}
4. c3 {[%clk 0:01:14.6]} 4... d5 {[%clk 0:02:52.6]} 5. e3 {[%clk 0:01:09.4]}
5... Nc6 {[%clk 0:02:53]} 6. Nbd2 {[%clk 0:01:06.5]} 6... Bd6 {[%clk 0:02:52.6]}
7. Ne5 {[%clk 0:01:05.6]} 7... Bxe5 {[%clk 0:02:48.2]} 8. dxe5 {[%clk
0:01:05.3]} 8... Nd7 {[%clk 0:02:48.3]} 9. Qg4 {[%clk 0:01:01.9]} 9... Ncxe5
{[%clk 0:02:38]} 10. Qxg7 {[%clk 0:01:01.2]} 10... Ng6 {[%clk 0:02:37.1]} 11. h4
{[%clk 0:01:00]} 11... Qf6 {[%clk 0:02:35.4]} 12. Qxf6 {[%clk 0:00:56.8]} 12...
Nxf6 {[%clk 0:02:35.2]} 13. Bg5 {[%clk 0:00:53.1]} 13... Ne4 {[%clk 0:02:27]}
14. Nxe4 {[%clk 0:00:52.5]} 14... dxe4 {[%clk 0:02:26.5]} 15. h5 {[%clk
0:00:52.6]} 15... Ne7 {[%clk 0:02:24.5]} 16. Bb5+ {[%clk 0:00:51.2]} 16... Bd7
{[%clk 0:02:23.8]} 17. Bxd7+ {[%clk 0:00:50.8]} 17... Kxd7 {[%clk 0:02:23.7]}
18. O-O-O+ {[%clk 0:00:51.4]} 18... Ke8 {[%clk 0:02:21.5]} 19. Rh4 {[%clk
0:00:51.3]} 19... f5 {[%clk 0:02:17.9]} 20. c4 {[%clk 0:00:46.2]} 20... Rg8
{[%clk 0:02:17]} 21. Bxe7 {[%clk 0:00:37]} 21... Kxe7 {[%clk 0:02:16.5]} 22. g3
{[%clk 0:00:37.4]} 22... Rad8 {[%clk 0:02:14.2]} 23. Rhh1 {[%clk 0:00:35.5]}
23... Kf6 {[%clk 0:02:08]} 24. Rxd8 {[%clk 0:00:31.6]} 24... Rxd8 {[%clk
0:02:07.2]} 25. Kc2 {[%clk 0:00:32.5]} 25... Kg5 {[%clk 0:02:04]} 26. Rh4 {[%clk
0:00:28.5]} 26... Rf8 {[%clk 0:01:55.8]} 27. Kd2 {[%clk 0:00:26.4]} 27... Rf6
{[%clk 0:01:54.8]} 28. Ke2 {[%clk 0:00:20.8]} 28... e5 {[%clk 0:01:53.4]} 29.
Rh1 {[%clk 0:00:19.4]} 29... Rh6 {[%clk 0:01:49.6]} 30. Rd1 {[%clk 0:00:18.7]}
30... Rxh5 {[%clk 0:01:45.6]} 31. Rd5 {[%clk 0:00:18.7]} 31... Rh6 {[%clk
0:01:41.8]} 32. Rxc5 {[%clk 0:00:17.3]} 32... Rb6 {[%clk 0:01:38.2]} 33. b3
{[%clk 0:00:16.8]} 33... Ra6 {[%clk 0:01:37.2]} 34. a4 {[%clk 0:00:10.7]} 34...
Rb6 {[%clk 0:01:37]} 35. Rb5 {[%clk 0:00:09]} 35... Rxb5 {[%clk 0:01:36.7]} 36.
axb5 {[%clk 0:00:09.9]} 36... b6 {[%clk 0:01:28.3]} 37. b4 {[%clk 0:00:09.1]}
37... Kf6 {[%clk 0:01:28.7]} 38. c5 {[%clk 0:00:09.4]} 38... Ke6 {[%clk
0:01:25.4]} 39. c6 {[%clk 0:00:07.6]} 39... Kd6 {[%clk 0:01:25.2]} 40. Kf1
{[%clk 0:00:06.3]} 40... Kc7 {[%clk 0:01:12.2]} 41. Kg2 {[%clk 0:00:06.2]} 41...
Kb8 {[%clk 0:01:12]} 42. Kh3 {[%clk 0:00:05.8]} 42... a5 {[%clk 0:01:10.7]} 43.
bxa6 {[%clk 0:00:05.2]} 1-0

[Event "*** Titled Tuesday Blitz"]
[Site "Chess.com"]
[Date "2020.12.01"]
[Round "3"]
[White "ChristopherYoo"]
[Black "Kretov_Evgenij"]
[Result "0-1"]
[WhiteElo "2843"]
[BlackElo "2472"]
[TimeControl "180+1"]
[EndTime "10:27:42 PST"]
[Termination "Kretov_Evgenij won by resignation"]

1. e4 {[%clk 0:03:00.9]} 1... c5 {[%clk 0:03:00.2]} 2. Nc3 {[%clk 0:02:59.7]}
2... Nc6 {[%clk 0:03:00.5]} 3. Nge2 {[%clk 0:02:58.9]} 3... g6 {[%clk
0:03:00.7]} 4. g3 {[%clk 0:02:55.4]} 4... Bg7 {[%clk 0:03:00.6]} 5. Bg2 {[%clk
0:02:56.2]} 5... d6 {[%clk 0:03:01]} 6. d3 {[%clk 0:02:56.3]} 6... e5 {[%clk
0:03:01.3]} 7. Be3 {[%clk 0:02:56.4]} 7... Nge7 {[%clk 0:03:01.4]} 8. Qd2 {[%clk
0:02:56.7]} 8... O-O {[%clk 0:03:01.1]} 9. Nd1 {[%clk 0:02:52.3]} 9... Be6
{[%clk 0:03:00.7]} 10. c3 {[%clk 0:02:51]} 10... Rb8 {[%clk 0:03:00.2]} 11. Bh6
{[%clk 0:02:50.2]} 11... b5 {[%clk 0:02:59.9]} 12. h4 {[%clk 0:02:49.7]} 12...
f6 {[%clk 0:03:00]} 13. h5 {[%clk 0:02:45.7]} 13... g5 {[%clk 0:03:00]} 14. Bxg7
{[%clk 0:02:44.2]} 14... Kxg7 {[%clk 0:03:00.3]} 15. f4 {[%clk 0:02:43.8]} 15...
h6 {[%clk 0:02:59.7]} 16. Ne3 {[%clk 0:02:40.7]} 16... b4 {[%clk 0:02:57.7]} 17.
O-O {[%clk 0:02:32.7]} 17... Qa5 {[%clk 0:02:51.3]} 18. fxg5 {[%clk 0:02:27.2]}
18... fxg5 {[%clk 0:02:50.9]} 19. Nf5+ {[%clk 0:02:26.9]} 19... Bxf5 {[%clk
0:02:39.5]} 20. exf5 {[%clk 0:02:27.8]} 20... d5 {[%clk 0:02:38.5]} 21. g4
{[%clk 0:01:47.2]} 21... Rf6 {[%clk 0:02:35.9]} 22. Qe3 {[%clk 0:01:45.6]} 22...
Rd8 {[%clk 0:02:15]} 23. Rfc1 {[%clk 0:01:30.9]} 23... bxc3 {[%clk 0:02:13.2]}
24. bxc3 {[%clk 0:01:31.8]} 24... d4 {[%clk 0:02:02.2]} 25. cxd4 {[%clk
0:01:31]} 25... Nxd4 {[%clk 0:01:58.9]} 26. Qxe5 {[%clk 0:01:28.6]} 26... Nxe2+
{[%clk 0:01:56.2]} 27. Qxe2 {[%clk 0:01:29.5]} 27... Qc7 {[%clk 0:01:54.1]} 28.
Rc4 {[%clk 0:01:25.2]} 28... Nd5 {[%clk 0:01:51.9]} 29. Bxd5 {[%clk 0:01:20.2]}
29... Rxd5 {[%clk 0:01:51.5]} 30. Kg2 {[%clk 0:01:15.6]} 30... Qd7 {[%clk
0:01:47.2]} 31. Re4 {[%clk 0:01:14.6]} 31... Rf7 {[%clk 0:01:45.5]} 32. Rd1
{[%clk 0:00:58.2]} 32... Rd4 {[%clk 0:01:40.6]} 33. Re6 {[%clk 0:00:54.6]} 33...
Qd5+ {[%clk 0:01:38.7]} 34. Kh3 {[%clk 0:00:53]} 34... Kh7 {[%clk 0:01:37.9]}
35. Re5 {[%clk 0:00:36.6]} 35... Qd7 {[%clk 0:01:30]} 36. Qe3 {[%clk 0:00:34.5]}
36... c4 {[%clk 0:01:28.6]} 37. Re6 {[%clk 0:00:24.6]} 37... Rxd3 {[%clk
0:01:24.2]} 38. Rxd3 {[%clk 0:00:22.4]} 38... cxd3 {[%clk 0:01:24.6]} 39. f6
{[%clk 0:00:18.9]} 39... Qd5 {[%clk 0:01:18.7]} 40. Re5 {[%clk 0:00:17.6]} 40...
Qh1+ {[%clk 0:01:14.9]} 41. Kg3 {[%clk 0:00:17.4]} 41... Qh4+ {[%clk 0:01:08.9]}
42. Kf3 {[%clk 0:00:13.4]} 42... Rxf6+ {[%clk 0:01:06.6]} 43. Rf5 {[%clk
0:00:08.5]} 43... Rxf5+ {[%clk 0:01:06.7]} 44. gxf5 {[%clk 0:00:08.5]} 44...
Qf4+ {[%clk 0:01:06.7]} 45. Qxf4 {[%clk 0:00:06.7]} 45... gxf4 {[%clk
0:01:06.9]} 46. Kf2 {[%clk 0:00:06.8]} 46... Kg7 {[%clk 0:01:06.9]} 47. Ke1
{[%clk 0:00:06.9]} 47... Kf6 {[%clk 0:01:07.2]} 0-1

[Event "*** Titled Tuesday Blitz"]
[Site "Chess.com"]
[Date "2020.12.01"]
[Round "3"]
[White "ftorodent"]
[Black "rasmussvane"]
[Result "0-1"]
[WhiteElo "2617"]
[BlackElo "2877"]
[TimeControl "180+1"]
[EndTime "10:27:43 PST"]
[Termination "rasmussvane won by resignation"]

1. d4 {[%clk 0:03:00.9]} 1... d5 {[%clk 0:02:59.1]} 2. c4 {[%clk 0:03:00.8]}
2... e6 {[%clk 0:02:59.3]} 3. Nf3 {[%clk 0:03:00.1]} 3... a6 {[%clk 0:02:59.1]}
4. cxd5 {[%clk 0:02:58.2]} 4... exd5 {[%clk 0:03:00]} 5. Bg5 {[%clk 0:02:56.2]}
5... Nf6 {[%clk 0:02:57.7]} 6. Nc3 {[%clk 0:02:55.7]} 6... Be6 {[%clk
0:02:57.9]} 7. e3 {[%clk 0:02:54.8]} 7... Nbd7 {[%clk 0:02:58.1]} 8. Bd3 {[%clk
0:02:54]} 8... c6 {[%clk 0:02:58.6]} 9. O-O {[%clk 0:02:53.4]} 9... Bd6 {[%clk
0:02:58.5]} 10. Bh4 {[%clk 0:02:45.4]} 10... Qc7 {[%clk 0:02:53.5]} 11. Bg3
{[%clk 0:02:40.6]} 11... Bxg3 {[%clk 0:02:53.5]} 12. hxg3 {[%clk 0:02:40.8]}
12... O-O {[%clk 0:02:54.2]} 13. b4 {[%clk 0:02:39.9]} 13... Bg4 {[%clk
0:02:07.4]} 14. Qc2 {[%clk 0:02:39.3]} 14... Bh5 {[%clk 0:02:06.2]} 15. a4
{[%clk 0:02:31.7]} 15... Bg6 {[%clk 0:02:03.8]} 16. Rfc1 {[%clk 0:02:25.1]}
16... Rfc8 {[%clk 0:01:58.5]} 17. Bxg6 {[%clk 0:02:12.5]} 17... hxg6 {[%clk
0:01:59.4]} 18. Ne1 {[%clk 0:02:12.7]} 18... Nb6 {[%clk 0:01:51.6]} 19. Nd3
{[%clk 0:02:02.9]} 19... Nc4 {[%clk 0:01:51.9]} 20. b5 {[%clk 0:01:58.6]} 20...
cxb5 {[%clk 0:01:48.6]} 21. axb5 {[%clk 0:01:56]} 21... a5 {[%clk 0:01:46.8]}
22. Na4 {[%clk 0:01:40.5]} 22... Qd6 {[%clk 0:01:37.7]} 23. Ne5 {[%clk
0:01:05.5]} 23... Nd7 {[%clk 0:01:14]} 24. Nxd7 {[%clk 0:00:43.2]} 24... Qxd7
{[%clk 0:01:14.2]} 25. Qe2 {[%clk 0:00:42.9]} 25... Qxb5 {[%clk 0:01:07.3]} 26.
Nc3 {[%clk 0:00:38.6]} 26... Qd7 {[%clk 0:01:03.6]} 27. e4 {[%clk 0:00:36.8]}
27... dxe4 {[%clk 0:00:59.8]} 28. Qxe4 {[%clk 0:00:36.3]} 28... b5 {[%clk
0:00:50.3]} 29. d5 {[%clk 0:00:35]} 29... Nd6 {[%clk 0:00:44.8]} 30. Qd4 {[%clk
0:00:31.3]} 30... Rc4 {[%clk 0:00:44.3]} 31. Qd3 {[%clk 0:00:30.9]} 31... Rac8
{[%clk 0:00:43.1]} 32. Ne2 {[%clk 0:00:31.2]} 32... Rxc1+ {[%clk 0:00:40]} 33.
Nxc1 {[%clk 0:00:31.4]} 33... Qf5 {[%clk 0:00:37.6]} 34. Qd2 {[%clk 0:00:26.3]}
34... a4 {[%clk 0:00:34.7]} 35. Ne2 {[%clk 0:00:26.2]} 35... Rc2 {[%clk
0:00:30.2]} 36. Qb4 {[%clk 0:00:20]} 36... Rxe2 {[%clk 0:00:28.1]} 0-1

[Event "*** Titled Tuesday Blitz"]
[Site "Chess.com"]
[Date "2020.12.01"]
[Round "3"]
[White "VladimirBelous"]
[Black "Titus369"]
[Result "0-1"]
[WhiteElo "2807"]
[BlackElo "2590"]
[TimeControl "180+1"]
[EndTime "10:27:46 PST"]
[Termination "Titus369 won by resignation"]

1. Nf3 {[%clk 0:02:59.4]} 1... Nf6 {[%clk 0:02:49.5]} 2. c4 {[%clk 0:02:59.3]}
2... e6 {[%clk 0:02:49.7]} 3. g3 {[%clk 0:02:59]} 3... d5 {[%clk 0:02:50.2]} 4.
Bg2 {[%clk 0:02:59.9]} 4... Be7 {[%clk 0:02:50.5]} 5. O-O {[%clk 0:03:00.5]}
5... O-O {[%clk 0:02:50.5]} 6. d4 {[%clk 0:03:00.9]} 6... dxc4 {[%clk
0:02:50.2]} 7. Qc2 {[%clk 0:03:01.4]} 7... b5 {[%clk 0:02:49.6]} 8. a4 {[%clk
0:02:59.6]} 8... Bb7 {[%clk 0:02:49.5]} 9. axb5 {[%clk 0:02:58.9]} 9... a6
{[%clk 0:02:50.1]} 10. bxa6 {[%clk 0:02:55.5]} 10... Nxa6 {[%clk 0:02:51]} 11.
Qxc4 {[%clk 0:02:44.1]} 11... Bd5 {[%clk 0:02:44]} 12. Qc3 {[%clk 0:02:17.9]}
12... Ne4 {[%clk 0:02:39.8]} 13. Qe3 {[%clk 0:02:07.9]} 13... c5 {[%clk
0:02:31.3]} 14. Nc3 {[%clk 0:02:02.2]} 14... cxd4 {[%clk 0:02:10.3]} 15. Nxd4
{[%clk 0:02:00.6]} 15... Nxc3 {[%clk 0:02:00]} 16. bxc3 {[%clk 0:01:58.7]} 16...
Nc5 {[%clk 0:01:54.5]} 17. Rxa8 {[%clk 0:01:55.2]} 17... Qxa8 {[%clk 0:01:55.4]}
18. Bxd5 {[%clk 0:01:28.9]} 18... Qxd5 {[%clk 0:01:56.3]} 19. Ba3 {[%clk
0:01:23.2]} 19... Bf6 {[%clk 0:01:52.2]} 20. Nb5 {[%clk 0:01:07.9]} 20... Rc8
{[%clk 0:01:48.1]} 21. c4 {[%clk 0:01:08.3]} 21... Qh5 {[%clk 0:01:36.7]} 22.
Nd6 {[%clk 0:00:57.4]} 22... Rc6 {[%clk 0:01:31.9]} 23. Bxc5 {[%clk 0:00:56.1]}
23... Qxc5 {[%clk 0:01:29.8]} 24. Qxc5 {[%clk 0:00:56.3]} 24... Rxc5 {[%clk
0:01:30.7]} 25. Rb1 {[%clk 0:00:56.5]} 25... Be7 {[%clk 0:01:06.8]} 26. Rb8+
{[%clk 0:00:37.5]} 26... Bf8 {[%clk 0:01:05.9]} 27. Nc8 {[%clk 0:00:37.8]} 27...
g6 {[%clk 0:01:00.5]} 28. Nb6 {[%clk 0:00:37.9]} 28... Rc7 {[%clk 0:00:57.1]}
29. Rc8 {[%clk 0:00:25.8]} 29... Rxc8 {[%clk 0:00:53.7]} 30. Nxc8 {[%clk
0:00:26.7]} 30... Bc5 {[%clk 0:00:54.1]} 31. e4 {[%clk 0:00:26]} 31... e5 {[%clk
0:00:51.1]} 32. Kg2 {[%clk 0:00:24.6]} 32... Kf8 {[%clk 0:00:50.9]} 33. f4
{[%clk 0:00:25.1]} 33... f6 {[%clk 0:00:50.6]} 34. f5 {[%clk 0:00:25.6]} 34...
Ke8 {[%clk 0:00:50.5]} 35. fxg6 {[%clk 0:00:25.3]} 35... hxg6 {[%clk 0:00:51.4]}
36. h4 {[%clk 0:00:25.5]} 36... Kd7 {[%clk 0:00:51.6]} 37. g4 {[%clk 0:00:26.4]}
37... Kxc8 {[%clk 0:00:51.6]} 38. h5 {[%clk 0:00:27.3]} 38... gxh5 {[%clk
0:00:51.9]} 39. gxh5 {[%clk 0:00:28.2]} 39... Bf8 {[%clk 0:00:47.8]} 40. Kf3
{[%clk 0:00:29.1]} 40... Kd7 {[%clk 0:00:47.4]} 41. Kg4 {[%clk 0:00:30]} 41...
Ke6 {[%clk 0:00:46.6]} 42. Kh4 {[%clk 0:00:26]} 42... f5 {[%clk 0:00:42]} 43.
exf5+ {[%clk 0:00:19.6]} 43... Kxf5 {[%clk 0:00:42.9]} 44. Kg3 {[%clk
0:00:19.7]} 44... e4 {[%clk 0:00:42.8]} 45. h6 {[%clk 0:00:18.2]} 45... Bxh6
{[%clk 0:00:42.8]} 46. c5 {[%clk 0:00:18.6]} 46... Bf4+ {[%clk 0:00:42.8]} 47.
Kf2 {[%clk 0:00:18.5]} 47... Ke5 {[%clk 0:00:43.3]} 48. c6 {[%clk 0:00:19.4]}
48... Kd6 {[%clk 0:00:43.6]} 0-1